fUST/lending_fUST_20250608
["ID","MTS","AMOUNT","RATE_DAILY","PERIOD"]
[364936646,1749319838585,-3491.41,0.00022916,2]
[364936647,1749319838596,-440.0,0.00022916,2]
[364936648,1749319838607,-166.36,0.00022916,2]
[364936649,1749319838617,-440.0,0.00022919,2]
[364936650,1749319838627,-728.27,0.00022919,2]
[364936651,1749319838637,-411.49134782,0.00022969,8]
[364936652,1749319838647,-411.49134782,0.00023107,8]
[364936653,1749319838658,-366.49202124,0.00023141,2]
[364936654,1749319838668,-440.0,0.0002319,2]
[364936655,1749319838678,-3491.41,0.0002319,2]
[364936656,1749319838689,-440.0,0.0002319,2]
[364936657,1749319838700,-440.0,0.00023193,2]
[364936658,1749319838710,-728.27,0.00023193,2]
[364936659,1749319838720,-411.49134782,0.00023245,8]
[364936660,1749319838730,-962.0,0.00023342,2]
[364936661,1749319838740,-2225.0,0.00023342,2]
[364936662,1749319838750,-709.0,0.00023342,2]
[364936663,1749319838760,-411.49134782,0.00023383,9]
[364936664,1749319838771,-500.0,0.0002344,2]
[364936665,1749319838781,-270.6557062,0.00023464,2]
[364936666,1749319838792,-3491.41,0.00023464,2]
[364936667,1749319838801,-440.0,0.00023464,2]
[364936668,1749319838949,-531.7,0.00023467,2]
[364936669,1749319838960,-728.27,0.00023467,2]
[364936670,1749319838971,-71044.93,0.000235,7]
[364936671,1749319838981,-744.59,0.000235,7]
[364936672,1749319838991,-152.303192,0.000235,7]
[364936673,1749319839002,-151.0,0.000235,7]
[364936674,1749319839012,-151.0,0.000235,7]
[364936675,1749319839022,-151.0,0.000235,7]
[364936676,1749319839034,-151.0,0.000235,7]
[364936677,1749319839043,-151.0,0.000235,7]
[364936678,1749319839053,-151.0,0.000235,7]
[364936679,1749319839063,-151.0,0.000235,7]
[364936680,1749319839072,-151.0,0.000235,7]
[364936681,1749319839082,-151.0,0.000235,7]
[364936682,1749319839092,-151.0,0.000235,7]
[364936683,1749319839102,-151.0,0.000235,7]
[364936684,1749319839112,-186.383296,0.000235,7]
[364936685,1749319839121,-186.383296,0.000235,7]
[364936686,1749319839131,-151.0,0.000235,7]
[364936687,1749319839141,-151.0,0.000235,7]
[364936688,1749319839151,-193.561162,0.000235,7]
[364936689,1749319839161,-151.0,0.000235,7]
[364936690,1749319839171,-227.37581,0.000235,2]
[364936691,1749319839181,-193.561162,0.000235,7]
[364936692,1749319839191,-227.37581,0.000235,2]
[364936693,1749319839201,-411.49134782,0.00023521,9]
[364936694,1749319839210,-411.49134782,0.00023659,9]
[364936695,1749319839220,-3491.41,0.00023738,2]
[364936696,1749319839230,-440.0,0.00023738,2]
[364936697,1749319839240,-728.27,0.00023741,2]
[364936698,1749319839250,-1713.6,0.00023755,2]
[364936699,1749319839260,-159.89887137,0.00023781,2]
[364936700,1749319839270,-411.49134782,0.00023797,9]
[364936701,1749319839280,-323.79,0.000238,7]
[364936702,1749319839291,-366.49202124,0.00023864,2]
[364936703,1749319839300,-989.72,0.000239,2]
[364936704,1749319839310,-388.98090218,0.000239,2]
[364936705,1749319839320,-442.988691,0.00023912,3]
[364936706,1749319839329,-159.957848,0.00023912,11]
[364936707,1749319839339,-2200.0,0.00023932,2]
[364936708,1749319839350,-411.49134782,0.00023934,10]
[364936709,1749319839360,-164.057632,0.00023973,2]
[364936710,1749319839370,-2000.0,0.00024,2]
[364936711,1749319839381,-229.56495552,0.00024,7]
[364936712,1749319839392,-3107.26544081,0.00024012,2]
[364936713,1749319839405,-384.14455919,0.00024012,2]
[364936714,1749319839417,-435.94323348,0.00024012,2]
[364936721,1749319840560,-440.0,0.00019626,2]
[364936722,1749319840570,-440.0,0.00019627,2]
[364936723,1749319840581,-170.24555412,0.00019628,2]
[364936724,1749319840593,-269.75444588,0.00019628,2]
[364936725,1749319840604,-440.0,0.00019901,2]
[364936726,1749319840613,-440.0,0.00020175,2]
[364936727,1749319840623,-440.0,0.00020449,2]
[364936728,1749319840633,-440.0,0.00020723,2]
[364936729,1749319840642,-440.0,0.00020997,2]
[364936730,1749319840652,-440.0,0.00021271,2]
[364936731,1749319840662,-233.33146511,0.00021545,2]
[364936732,1749319840672,-4.05676652,0.00024012,2]
[364936733,1749319840683,-143.6273225,0.00024015,2]
[364936737,1749319846230,-419.3358326,0.00019626,2]
[364936738,1749319846239,-440.0,0.00019626,2]
[364936739,1749319846250,-440.0,0.00019628,2]
[364936740,1749319846259,-453.94987709,0.00019902,2]
[364936741,1749319846270,-440.0,0.00019902,2]
[364936742,1749319846280,-584.6426775,0.00024015,2]
[364936743,1749319846292,-411.49134782,0.00024072,10]
[364936745,1749319846302,-151.0,0.000241,6]
[364936747,1749319846311,-16866.86026499,0.000241,2]
[364936749,1749320055848,2999.7927976,0.00018619,2]
[364936751,1749320230822,164.147882,0.00013699,2]
[364936795,1749320839142,-179.781438,0.00019012,2]
[364936796,1749320839164,-385.513185,0.00019039,2]
[364936797,1749320839186,-195.614598,0.0001904,2]
[364936798,1749320839208,-202.78109951,0.00019042,2]
[364936799,1749320839232,-161.40522167,0.00019512,2]
[364936800,1749320839255,-300.0,0.000196,2]
[364936801,1749320839276,-440.0,0.000196,2]
[364936802,1749320839303,-430.0,0.000196,2]
[364936803,1749320839326,-430.0,0.000196,2]
[364936804,1749320839352,-440.0,0.000196,2]
[364936805,1749320839374,-400.0,0.000196,2]
[364936806,1749320839397,-430.0,0.000196,2]
[364936807,1749320839420,-522.46601009,0.000196,2]
[364936808,1749320839445,-500.0,0.000196,2]
[364936809,1749320839473,-500.0,0.000196,2]
[364936810,1749320839502,-540.71140025,0.000196,2]
[364936811,1749320839530,-500.0,0.000196,2]
[364936812,1749320839553,-500.0,0.000196,2]
[364936813,1749320839576,-500.0,0.000196,2]
[364936814,1749320839598,-842.24559294,0.000196,2]
[364936815,1749320839620,-500.0,0.000196,2]
[364936816,1749320839643,-500.0,0.000196,2]
[364936817,1749320839665,-842.24559294,0.000196,2]
[364936818,1749320839687,-500.0,0.000196,2]
[364936819,1749320839708,-500.0,0.000196,2]
[364936820,1749320839730,-842.24559294,0.000196,2]
[364936821,1749320839752,-199.5702339,0.000196,2]
[364936822,1749320839774,-500.0,0.000196,2]
[364936823,1749320839797,-842.24559294,0.000196,2]
[364936824,1749320839819,-500.0,0.000196,2]
[364936825,1749320839842,-285.408,0.000196,2]
[364936826,1749320839865,-842.24559294,0.000196,2]
[364936827,1749320839885,-369.45531119,0.000196,2]
[364936828,1749320839907,-500.0,0.000196,2]
[364936829,1749320839928,-500.0,0.000196,2]
[364936830,1749320839950,-842.24559294,0.000196,2]
[364936831,1749320839972,-500.0,0.000196,2]
[364936832,1749320839994,-842.24559294,0.000196,2]
[364936833,1749320840016,-500.0,0.000196,2]
[364936834,1749320840038,-842.24559294,0.000196,2]
[364936835,1749320840060,-842.24559294,0.000196,2]
[364936836,1749320840082,-500.0,0.000196,2]
[364936837,1749320840105,-842.24559294,0.000196,2]
[364936838,1749320840128,-500.0,0.000196,2]
[364936839,1749320840150,-842.24559294,0.000196,2]
[364936840,1749320840172,-500.0,0.000196,2]
[364936841,1749320840194,-842.24559294,0.000196,2]
[364936842,1749320840361,-500.0,0.000196,2]
[364936843,1749320840390,-842.24559294,0.000196,2]
[364936844,1749320840415,-500.0,0.000196,2]
[364936845,1749320840439,-842.24559294,0.000196,2]
[364936846,1749320840463,-500.0,0.000196,2]
[364936847,1749320840486,-842.24559294,0.000196,2]
[364936848,1749320840509,-500.0,0.000196,2]
[364936849,1749320840532,-842.24559294,0.000196,2]
[364936850,1749320840556,-500.0,0.000196,2]
[364936851,1749320840579,-842.24559294,0.000196,2]
[364936852,1749320840602,-500.0,0.000196,2]
[364936853,1749320840624,-842.24559294,0.000196,2]
[364936854,1749320840646,-500.0,0.000196,2]
[364936855,1749320840670,-842.24559294,0.000196,2]
[364936856,1749320840692,-500.0,0.000196,2]
[364936857,1749320840714,-842.24559294,0.000196,2]
[364936858,1749320840734,-842.24559294,0.000196,2]
[364936859,1749320840756,-500.0,0.000196,2]
[364936860,1749320840779,-842.24559294,0.000196,2]
[364936861,1749320840801,-842.24559294,0.000196,2]
[364936862,1749320840823,-500.0,0.000196,2]
[364936863,1749320840846,-842.24559294,0.000196,2]
[364936864,1749320840867,-372.83677463,0.000196,2]
[364936865,1749320840889,-842.24559294,0.000196,2]
[364936866,1749320840911,-842.24559294,0.000196,2]
[364936867,1749320840932,-842.24559294,0.000196,2]
[364936868,1749320840954,-842.24559294,0.000196,2]
[364936869,1749320840976,-500.0,0.000196,2]
[364936870,1749320840998,-842.24559294,0.000196,2]
[364936871,1749320841021,-842.24559294,0.000196,2]
[364936872,1749320841045,-842.24559294,0.000196,2]
[364936873,1749320841066,-842.24559294,0.000196,2]
[364936874,1749320841089,-842.24559294,0.000196,2]
[364936875,1749320841111,-842.24559294,0.000196,2]
[364936876,1749320841134,-842.24559294,0.000196,2]
[364936877,1749320841158,-842.24559294,0.000196,2]
[364936878,1749320841179,-842.24559294,0.000196,2]
[364936879,1749320841201,-842.24559294,0.000196,2]
[364936880,1749320841224,-842.24559294,0.000196,2]
[364936881,1749320841247,-842.24559294,0.000196,2]
[364936882,1749320841269,-842.24559294,0.000196,2]
[364936883,1749320841296,-842.24559294,0.000196,2]
[364936884,1749320841320,-842.24559294,0.000196,2]
[364936885,1749320841344,-842.24559294,0.000196,2]
[364936886,1749320841368,-842.24559294,0.000196,2]
[364936887,1749320841391,-842.24559294,0.000196,2]
[364936888,1749320841415,-842.24559294,0.000196,2]
[364936889,1749320841438,-842.24559294,0.000196,2]
[364936890,1749320841462,-842.24559294,0.000196,2]
[364936891,1749320841488,-842.24559294,0.000196,2]
[364936892,1749320841511,-842.24559294,0.000196,2]
[364936893,1749320841534,-842.24559294,0.000196,2]
[364936894,1749320841557,-842.24559294,0.000196,2]
[364936895,1749320841579,-842.24559294,0.000196,2]
[364936896,1749320841602,-842.24559294,0.000196,2]
[364936897,1749320841625,-842.24559294,0.000196,2]
[364936898,1749320841649,-842.24559294,0.000196,2]
[364936899,1749320841671,-842.24559294,0.000196,2]
[364936900,1749320841693,-842.24559294,0.000196,2]
[364936901,1749320841716,-842.24559294,0.000196,2]
[364936902,1749320841739,-842.24559294,0.000196,2]
[364936903,1749320841761,-842.24559294,0.000196,2]
[364936904,1749320841784,-842.24559294,0.000196,2]
[364936905,1749320841806,-842.24559294,0.000196,2]
[364936906,1749320841828,-842.24559294,0.000196,2]
[364936907,1749320841850,-842.24559294,0.000196,2]
[364936908,1749320841871,-842.24559294,0.000196,2]
[364936909,1749320841893,-842.24559294,0.000196,2]
[364936910,1749320841914,-842.24559294,0.000196,2]
[364936911,1749320841935,-3215.64196028,0.000196,2]
[364936912,1749320841957,-3215.64196028,0.000196,2]
[364936913,1749320841978,-3215.64196028,0.000196,2]
[364936914,1749320841999,-3215.64196028,0.000196,2]
[364936915,1749320842021,-3215.64196028,0.000196,2]
[364936916,1749320842043,-3215.64196028,0.000196,2]
[364936917,1749320842065,-3215.64196028,0.000196,2]
[364936918,1749320842087,-3215.64196028,0.000196,2]
[364936919,1749320842109,-3215.64196028,0.000196,2]
[364936920,1749320842131,-3215.64196028,0.000196,2]
[364936921,1749320842152,-3215.64196028,0.000196,2]
[364936922,1749320842173,-3215.64196028,0.000196,2]
[364936923,1749320842195,-3215.64196028,0.000196,2]
[364936924,1749320842218,-3215.64196028,0.000196,2]
[364936925,1749320842241,-3215.64196028,0.000196,2]
[364936926,1749320842263,-3215.64196028,0.000196,2]
[364936927,1749320842285,-3215.64196028,0.000196,2]
[364936928,1749320842313,-3215.64196028,0.000196,2]
[364936929,1749320842336,-3215.64196028,0.000196,2]
[364936930,1749320842359,-462.87267969,0.00019601,2]
[364936931,1749320842385,-430.0,0.00019601,2]
[364936932,1749320842408,-495.8,0.00019601,2]
[364936933,1749320842433,-440.0,0.00019601,2]
[364936934,1749320842456,-430.0,0.00019601,2]
[364936935,1749320842481,-2106.25,0.00019601,2]
[364936936,1749320842504,-543.22697106,0.00019601,2]
[364936937,1749320842526,-402.41880344,0.00019601,2]
[364936938,1749320842550,-440.0,0.00019601,2]
[364936939,1749320842572,-440.0,0.00019601,2]
[364936940,1749320842596,-440.0,0.00019601,2]
[364936941,1749320842617,-440.0,0.00019601,2]
[364936942,1749320842638,-400.0,0.00019601,2]
[364936943,1749320842661,-508.85,0.00019601,2]
[364936944,1749320842686,-440.0,0.00019601,2]
[364936945,1749320842707,-430.0,0.00019601,2]
[364936946,1749320842730,-576.33,0.00019601,2]
[364936947,1749320842756,-440.0,0.00019601,2]
[364936948,1749320842780,-430.0,0.00019601,2]
[364936949,1749320842807,-440.0,0.00019601,2]
[364936950,1749320842832,-440.0,0.00019601,2]
[364936951,1749320842853,-430.0,0.00019601,2]
[364936952,1749320842876,-440.0,0.00019601,2]
[364936953,1749320842900,-440.0,0.00019601,2]
[364936954,1749320842922,-440.0,0.00019601,2]
[364936955,1749320842944,-440.0,0.00019601,2]
[364936956,1749320842966,-440.0,0.00019601,2]
[364936957,1749320842988,-430.0,0.00019601,2]
[364936958,1749320843009,-430.0,0.00019601,2]
[364936959,1749320843031,-430.0,0.00019601,2]
[364936960,1749320843054,-430.0,0.00019601,2]
[364936961,1749320843076,-430.0,0.00019601,2]
[364936962,1749320843099,-430.0,0.00019601,2]
[364936963,1749320843121,-430.0,0.00019601,2]
[364936964,1749320843143,-430.0,0.00019601,2]
[364936965,1749320843164,-47630.44,0.00019601,2]
[364936966,1749320843185,-16000.0,0.00019601,2]
[364936967,1749320843206,-8238.9600914,0.00019601,2]
[364936968,1749320843228,-440.0,0.00019612,2]
[364936969,1749320843250,-440.0,0.00019612,2]
[364936970,1749320843272,-440.0,0.00019612,2]
[364936971,1749320843298,-440.0,0.00019612,2]
[364936972,1749320843319,-440.0,0.00019612,2]
[364936973,1749320843341,-500.0,0.00019612,2]
[364936974,1749320843362,-500.0,0.00019612,2]
[364936975,1749320843386,-500.0,0.00019612,2]
[364936976,1749320843408,-440.0,0.00019612,2]
[364936977,1749320843429,-440.89006823,0.00019612,2]
[364936978,1749320843450,-440.0,0.00019612,2]
[364936979,1749320843473,-440.0,0.00019612,2]
[364936980,1749320843616,-440.0,0.00019612,2]
[364936981,1749320843639,-440.0,0.00019612,2]
[364936982,1749320843661,-440.0,0.00019612,2]
[364936983,1749320843685,-500.0,0.00019612,2]
[364936984,1749320843710,-500.0,0.00019612,2]
[364936985,1749320843732,-500.0,0.00019612,2]
[364936986,1749320843753,-440.0,0.00019612,2]
[364936987,1749320843778,-440.0,0.00019612,2]
[364936988,1749320843800,-430.0,0.00019612,2]
[364936989,1749320843822,-430.0,0.00019612,2]
[364936990,1749320843844,-440.0,0.00019612,2]
[364936991,1749320843864,-440.0,0.00019612,2]
[364936992,1749320843886,-440.0,0.00019612,2]
[364936993,1749320843908,-440.0,0.00019612,2]
[364936994,1749320843928,-440.0,0.00019612,2]
[364936995,1749320843950,-440.0,0.00019612,2]
[364936996,1749320843972,-440.0,0.00019612,2]
[364936997,1749320843994,-440.0,0.00019612,2]
[364936998,1749320844017,-440.0,0.00019612,2]
[364936999,1749320844039,-440.0,0.00019612,2]
[364937000,1749320844062,-440.0,0.00019612,2]
[364937001,1749320844084,-440.0,0.00019612,2]
[364937002,1749320844105,-500.0,0.00019612,2]
[364937003,1749320844127,-440.0,0.00019612,2]
[364937004,1749320844148,-440.0,0.00019612,2]
[364937005,1749320844170,-440.0,0.00019612,2]
[364937006,1749320844191,-440.0,0.00019612,2]
[364937007,1749320844212,-440.0,0.00019612,2]
[364937008,1749320844234,-440.0,0.00019612,2]
[364937009,1749320844255,-440.0,0.00019612,2]
[364937010,1749320844277,-440.0,0.00019612,2]
[364937011,1749320844300,-430.0,0.00019612,2]
[364937012,1749320844322,-440.0,0.00019612,2]
[364937013,1749320844345,-440.0,0.00019612,2]
[364937014,1749320844368,-440.0,0.00019612,2]
[364937015,1749320844392,-440.0,0.00019612,2]
[364937016,1749320844414,-440.0,0.00019612,2]
[364937017,1749320844436,-440.0,0.00019612,2]
[364937018,1749320844458,-440.0,0.00019612,2]
[364937019,1749320844480,-430.80196499,0.00019612,2]
[364937020,1749320844502,-8.11376529,0.00019612,2]
[364937021,1749320863939,279.66030072,0.000189,2]
[364937025,1749320913253,673.0356334,0.0001,7]
[364937034,1749320971150,-2018.49,0.000196,2]
[364937035,1749320971179,-440.0,0.000196,2]
[364937036,1749320971204,-440.0,0.000196,2]
[364937037,1749320971227,-302.38,0.000196,2]
[364937038,1749320971248,-430.0,0.00019601,2]
[364937039,1749320971274,-430.0,0.00019601,2]
[364937040,1749320971296,-430.0,0.00019601,2]
[364937041,1749320971319,-440.0,0.00019601,2]
[364937042,1749320971347,-440.0,0.00019601,2]
[364937043,1749320971370,-430.0,0.00019601,2]
[364937044,1749320971395,-500.0,0.00019601,2]
[364937045,1749320971420,-500.0,0.00019601,2]
[364937046,1749320971445,-383.84810989,0.00019601,2]
[364937047,1749320971469,-440.0,0.00019601,2]
[364937048,1749320971494,-440.0,0.00019601,2]
[364937049,1749320971518,-440.0,0.00019601,2]
[364937050,1749320971539,-440.0,0.00019601,2]
[364937051,1749320971560,-440.0,0.00019601,2]
[364937052,1749320971582,-440.0,0.00019601,2]
[364937053,1749320971759,-440.0,0.00019601,2]
[364937054,1749320971784,-440.0,0.00019601,2]
[364937055,1749320971805,-440.0,0.00019601,2]
[364937056,1749320971828,-440.0,0.00019601,2]
[364937057,1749320971850,-440.0,0.00019601,2]
[364937058,1749320971871,-440.0,0.00019601,2]
[364937059,1749320971895,-440.0,0.00019601,2]
[364937060,1749320971917,-440.0,0.00019601,2]
[364937061,1749320971939,-5192.83201121,0.00019601,2]
[364937082,1749321032515,-169.68800907,0.00019511,2]
[364937083,1749321032525,-440.0,0.000196,2]
[364937084,1749321032535,-440.0,0.000196,2]
[364937085,1749321032545,-440.0,0.000196,2]
[364937086,1749321032556,-440.0,0.000196,2]
[364937087,1749321032566,-430.0,0.00019601,2]
[364937088,1749321032575,-440.0,0.00019601,2]
[364937089,1749321032586,-440.0,0.00019601,2]
[364937090,1749321032596,-440.0,0.00019601,2]
[364937091,1749321032605,-440.0,0.00019601,2]
[364937092,1749321032615,-440.0,0.00019601,2]
[364937093,1749321032626,-440.0,0.00019601,2]
[364937094,1749321032635,-440.0,0.00019601,2]
[364937095,1749321032648,-44807.16798879,0.00019601,2]
[364937096,1749321032658,-500.0,0.00019602,2]
[364937097,1749321032667,-365.72620706,0.00019602,2]
[364937098,1749321032677,-500.0,0.00019602,2]
[364937099,1749321032687,-500.0,0.00019602,2]
[364937100,1749321032697,-228.49798018,0.00019602,2]
[364937101,1749321032712,-156.587,0.00019603,2]
[364937102,1749321032725,-16000.0,0.00019603,2]
[364937103,1749321032739,-11372.31235965,0.00019603,2]
[364937104,1749321032752,-500.0,0.00019611,2]
[364937105,1749321032766,-500.0,0.00019611,2]
[364937106,1749321032777,-500.0,0.00019611,2]
[364937107,1749321032788,-500.0,0.00019611,2]
[364937108,1749321032800,-500.0,0.00019611,2]
[364937109,1749321032813,-263.64853052,0.00019611,2]
[364937110,1749321032824,-500.0,0.00019611,2]
[364937111,1749321032837,-500.0,0.00019611,2]
[364937112,1749321032851,-500.0,0.00019611,2]
[364937113,1749321032864,-500.0,0.00019611,2]
[364937114,1749321032877,-500.0,0.00019611,2]
[364937115,1749321032890,-500.0,0.00019611,2]
[364937116,1749321032903,-500.0,0.00019611,2]
[364937117,1749321032916,-500.0,0.00019611,2]
[364937118,1749321032928,-500.0,0.00019611,2]
[364937119,1749321032941,-500.0,0.00019611,2]
[364937120,1749321032954,-500.0,0.00019611,2]
[364937121,1749321032965,-500.0,0.00019611,2]
[364937122,1749321032977,-189.93006107,0.00019611,2]
[364937123,1749321032991,-500.0,0.00019611,2]
[364937124,1749321033003,-500.0,0.00019611,2]
[364937125,1749321033015,-500.0,0.00019611,2]
[364937126,1749321033028,-500.0,0.00019611,2]
[364937127,1749321033042,-500.0,0.00019611,2]
[364937128,1749321033055,-500.0,0.00019611,2]
[364937129,1749321033068,-500.0,0.00019611,2]
[364937130,1749321033081,-500.0,0.00019611,2]
[364937131,1749321033092,-500.0,0.00019611,2]
[364937132,1749321033104,-500.0,0.00019611,2]
[364937133,1749321033117,-500.0,0.00019611,2]
[364937134,1749321033129,-500.0,0.00019611,2]
[364937135,1749321033144,-500.0,0.00019611,2]
[364937136,1749321033156,-500.0,0.00019611,2]
[364937137,1749321033170,-500.0,0.00019611,2]
[364937138,1749321033183,-500.0,0.00019611,2]
[364937139,1749321033197,-585.0,0.00019611,2]
[364937140,1749321033209,-500.0,0.00019611,2]
[364937141,1749321033223,-500.0,0.00019611,2]
[364937142,1749321033236,-500.0,0.00019611,2]
[364937143,1749321033250,-500.0,0.00019611,2]
[364937144,1749321033264,-500.0,0.00019611,2]
[364937145,1749321033279,-500.0,0.00019611,2]
[364937146,1749321033291,-414.59588258,0.00019611,2]
[364937147,1749321033302,-500.0,0.00019611,2]
[364937148,1749321033314,-500.0,0.00019611,2]
[364937149,1749321033326,-500.0,0.00019611,2]
[364937150,1749321033340,-500.0,0.00019611,2]
[364937151,1749321033357,-500.0,0.00019611,2]
[364937152,1749321033372,-500.0,0.00019611,2]
[364937153,1749321033389,-500.0,0.00019611,2]
[364937154,1749321033404,-500.0,0.00019611,2]
[364937155,1749321033419,-448.42474342,0.00019611,2]
[364937156,1749321033433,-500.0,0.00019611,2]
[364937157,1749321033447,-439.72126762,0.00019611,2]
[364937158,1749321033460,-500.0,0.00019611,2]
[364937159,1749321033472,-500.0,0.00019611,2]
[364937160,1749321033486,-500.0,0.00019611,2]
[364937161,1749321033500,-225.2923256,0.00019611,2]
[364937162,1749321033512,-500.0,0.00019611,2]
[364937163,1749321033523,-500.0,0.00019611,2]
[364937164,1749321033534,-500.0,0.00019611,2]
[364937165,1749321033546,-550.0,0.00019611,2]
[364937166,1749321033558,-500.0,0.00019611,2]
[364937167,1749321033570,-500.0,0.00019611,2]
[364937168,1749321033584,-476.03389245,0.00019611,2]
[364937169,1749321033597,-500.0,0.00019611,2]
[364937170,1749321033609,-500.0,0.00019611,2]
[364937171,1749321033622,-500.0,0.00019611,2]
[364937172,1749321033635,-250.0,0.00019611,2]
[364937173,1749321033652,-448.78209747,0.00019612,2]
[364937174,1749321033664,-440.0,0.00019612,2]
[364937175,1749321033678,-440.0,0.00019612,2]
[364937176,1749321033690,-440.0,0.00019612,2]
[364937177,1749321033703,-440.0,0.00019612,2]
[364937178,1749321033715,-440.0,0.00019612,2]
[364937179,1749321033727,-192.4162834,0.00019612,2]
[364937190,1749321038099,-430.0,0.00019601,2]
[364937191,1749321038110,-440.0,0.00019601,2]
[364937192,1749321038120,-247.5837166,0.00019612,2]
[364937193,1749321038129,-440.0,0.00019612,2]
[364937194,1749321038139,-440.0,0.00019612,2]
[364937195,1749321038319,-440.0,0.00019612,2]
[364937196,1749321038331,-440.0,0.00019612,2]
[364937197,1749321038344,-500.0,0.00019612,2]
[364937198,1749321038353,-440.0,0.00019612,2]
[364937199,1749321038363,-440.0,0.00019612,2]
[364937200,1749321038373,-440.0,0.00019612,2]
[364937201,1749321038383,-440.0,0.00019612,2]
[364937202,1749321038394,-402.98553357,0.00019612,2]
[364937203,1749321038404,-440.0,0.00019612,2]
[364937204,1749321038414,-406.14639367,0.00019612,2]
[364937205,1749321038424,-440.0,0.00019612,2]
[364937206,1749321038434,-440.0,0.00019612,2]
[364937207,1749321038443,-440.0,0.00019612,2]
[364937208,1749321038452,-440.0,0.00019612,2]
[364937209,1749321038462,-440.0,0.00019612,2]
[364937210,1749321038472,-440.0,0.00019612,2]
[364937211,1749321038481,-440.0,0.00019612,2]
[364937212,1749321038491,-430.0,0.00019612,2]
[364937213,1749321038500,-440.0,0.00019612,2]
[364937214,1749321038510,-440.0,0.00019612,2]
[364937215,1749321038519,-440.0,0.00019612,2]
[364937216,1749321038530,-440.0,0.00019612,2]
[364937217,1749321038540,-440.0,0.00019612,2]
[364937218,1749321038551,-440.0,0.00019612,2]
[364937219,1749321038562,-310.0,0.00019613,2]
[364937220,1749321038572,-225.67668017,0.00019613,2]
[364937221,1749321038582,-429.98812886,0.00019613,2]
[364937222,1749321038591,-440.0,0.00019613,2]
[364937223,1749321038601,-440.0,0.00019613,2]
[364937224,1749321038611,-440.0,0.00019613,2]
[364937225,1749321038621,-440.0,0.00019613,2]
[364937226,1749321038631,-228.13644458,0.00019613,2]
[364937227,1749321038640,-430.0,0.00019613,2]
[364937228,1749321038650,-430.0,0.00019613,2]
[364937229,1749321038659,-440.0,0.00019613,2]
[364937230,1749321038669,-440.0,0.00019613,2]
[364937231,1749321038679,-440.0,0.00019613,2]
[364937232,1749321038688,-440.0,0.00019613,2]
[364937233,1749321038697,-440.0,0.00019613,2]
[364937234,1749321038706,-440.0,0.00019613,2]
[364937235,1749321038715,-440.0,0.00019613,2]
[364937236,1749321038726,-440.0,0.00019613,2]
[364937237,1749321038736,-440.0,0.00019613,2]
[364937238,1749321038745,-440.0,0.00019613,2]
[364937239,1749321038755,-506.39795192,0.00019613,2]
[364937240,1749321038764,-440.0,0.00019613,2]
[364937241,1749321038774,-430.0,0.00019613,2]
[364937242,1749321038783,-440.0,0.00019613,2]